[Event "Rapid del Mercoledì"]
[Site "Chess.com"]
[Date "2020.06.03"]
[Round "1"]
[White "pedrak"]
[Black "SanSecondoPR"]
[Result "1-0"]
[WhiteElo "1703"]
[BlackElo "1343"]
[TimeControl "720+3"]
[EndTime "12:04:02 PDT"]
[Termination "pedrak ha vinto per abbandono"]

1. e4 {[%clk 0:12:02.1]} 1... e5 {[%clk 0:11:34.2]} 2. Nf3 {[%clk 0:12:01.8]}
2... Nc6 {[%clk 0:11:34.1]} 3. Bb5 {[%clk 0:11:58.2]} 3... Nge7 {[%clk
0:11:33.9]} 4. O-O {[%clk 0:11:56.8]} 4... g6 {[%clk 0:11:33.8]} 5. d3 {[%clk
0:11:52.6]} 5... Bg7 {[%clk 0:11:35]} 6. Nc3 {[%clk 0:11:51.6]} 6... d6 {[%clk
0:11:34.5]} 7. h3 {[%clk 0:11:49.2]} 7... O-O {[%clk 0:11:33.3]} 8. Qe2 {[%clk
0:11:48.7]} 8... a6 {[%clk 0:11:27.6]} 9. Ba4 {[%clk 0:11:48.4]} 9... b5 {[%clk
0:11:26.1]} 10. Bb3 {[%clk 0:11:49.3]} 10... b4 {[%clk 0:11:01.9]} 11. Nd5
{[%clk 0:11:47.4]} 11... Nxd5 {[%clk 0:10:58]} 12. Bxd5 {[%clk 0:11:48]} 12...
Bb7 {[%clk 0:10:58.9]} 13. Bg5 {[%clk 0:11:42.3]} 13... Qd7 {[%clk 0:10:54.9]}
14. Qd2 {[%clk 0:11:42]} 14... a5 {[%clk 0:10:46.2]} 15. Bh6 {[%clk 0:11:40.2]}
15... Ne7 {[%clk 0:10:34.4]} 16. Bxb7 {[%clk 0:11:39]} 1-0

[Event "Rapid del Mercoledì"]
[Site "Chess.com"]
[Date "2020.06.03"]
[Round "1"]
[White "malberici"]
[Black "Mrtre7"]
[Result "0-1"]
[WhiteElo "1325"]
[BlackElo "1469"]
[TimeControl "720+3"]
[EndTime "12:15:54 PDT"]
[Termination "Mrtre7 ha vinto per abbandono"]

1. d4 {[%clk 0:12:01.3]} 1... d5 {[%clk 0:11:41]} 2. c4 {[%clk 0:12:01.6]} 2...
c6 {[%clk 0:11:30.6]} 3. Nf3 {[%clk 0:11:57.8]} 3... e6 {[%clk 0:11:31.3]} 4. a3
{[%clk 0:11:58.1]} 4... dxc4 {[%clk 0:11:29.5]} 5. e3 {[%clk 0:11:54.1]} 5... b5
{[%clk 0:11:29.1]} 6. Nc3 {[%clk 0:11:54.7]} 6... Nf6 {[%clk 0:10:49.4]} 7. Be2
{[%clk 0:11:47.5]} 7... Bb7 {[%clk 0:10:40.3]} 8. O-O {[%clk 0:11:43.5]} 8...
Be7 {[%clk 0:10:37.5]} 9. e4 {[%clk 0:11:35.7]} 9... a6 {[%clk 0:10:16.8]} 10.
e5 {[%clk 0:11:32.9]} 10... Nd5 {[%clk 0:10:17.8]} 11. Nxd5 {[%clk 0:11:22.1]}
11... cxd5 {[%clk 0:10:15.4]} 12. Bd2 {[%clk 0:11:15.1]} 12... Nd7 {[%clk
0:10:05.1]} 13. h3 {[%clk 0:11:06.3]} 13... O-O {[%clk 0:10:03.9]} 14. Nh2
{[%clk 0:11:02.9]} 14... f6 {[%clk 0:10:04.8]} 15. f4 {[%clk 0:11:02.9]} 15...
fxe5 {[%clk 0:10:03.9]} 16. fxe5 {[%clk 0:11:03.4]} 16... Qb6 {[%clk 0:09:49.8]}
17. Bc3 {[%clk 0:11:01]} 17... Nxe5 {[%clk 0:09:38.4]} 18. Kh1 {[%clk
0:11:00.4]} 18... Ng6 {[%clk 0:09:23.4]} 19. Bh5 {[%clk 0:10:49.5]} 19... Nf4
{[%clk 0:07:34.2]} 20. Bg4 {[%clk 0:10:28.8]} 20... Nd3 {[%clk 0:05:55]} 21. Qe2
{[%clk 0:10:07.6]} 21... Bf6 {[%clk 0:04:51.5]} 22. Bxe6+ {[%clk 0:09:51.8]}
22... Kh8 {[%clk 0:04:49.8]} 23. Qf3 {[%clk 0:09:28.2]} 23... Qxe6 {[%clk
0:04:31.9]} 24. Bb4 {[%clk 0:09:07.3]} 24... Be7 {[%clk 0:04:08.1]} 25. Qh5
{[%clk 0:08:36.7]} 25... Qe3 {[%clk 0:03:43.7]} 26. Bxe7 {[%clk 0:07:54.5]}
26... Qg1+ {[%clk 0:03:40]} 0-1

[Event "Rapid del Mercoledì"]
[Site "Chess.com"]
[Date "2020.06.03"]
[Round "1"]
[White "sirmale49"]
[Black "mr6701"]
[Result "1-0"]
[WhiteElo "1369"]
[BlackElo "1786"]
[TimeControl "720+3"]
[EndTime "12:17:01 PDT"]
[Termination "sirmale49 ha vinto per abbandono"]

1. e4 {[%clk 0:10:40.4]} 1... d5 {[%clk 0:12:00.1]} 2. e5 {[%clk 0:10:31.9]}
2... c5 {[%clk 0:12:00.9]} 3. f4 {[%clk 0:10:29.3]} 3... Nc6 {[%clk 0:12:02.6]}
4. Nf3 {[%clk 0:10:29.4]} 4... Bg4 {[%clk 0:12:00.7]} 5. Bb5 {[%clk 0:10:29.2]}
5... Qb6 {[%clk 0:11:59.3]} 6. Nc3 {[%clk 0:10:26.6]} 6... d4 {[%clk 0:11:58.2]}
7. Bxc6+ {[%clk 0:10:25.6]} 7... Qxc6 {[%clk 0:11:54.2]} 8. Nb1 {[%clk
0:10:05.2]} 8... Nh6 {[%clk 0:11:38.3]} 9. h3 {[%clk 0:09:58.8]} 9... Bh5 {[%clk
0:11:30]} 10. g4 {[%clk 0:10:00.1]} 10... Nxg4 {[%clk 0:11:31.9]} 11. hxg4
{[%clk 0:09:53]} 11... Bxg4 {[%clk 0:11:34.8]} 12. Rf1 {[%clk 0:09:46.8]} 12...
Qe4+ {[%clk 0:11:26.2]} 13. Qe2 {[%clk 0:09:45.7]} 13... Qxf4 {[%clk 0:11:28.4]}
14. Qf2 {[%clk 0:09:28.1]} 14... Qe4+ {[%clk 0:11:15.9]} 15. Qe2 {[%clk
0:09:23.8]} 15... Qxc2 {[%clk 0:11:17.7]} 16. Qd1 {[%clk 0:08:51]} 16... Qf5
{[%clk 0:11:09.2]} 17. d3 {[%clk 0:08:42.7]} 17... e6 {[%clk 0:10:50.9]} 18. Na3
{[%clk 0:08:21.6]} 18... Be7 {[%clk 0:10:52.4]} 19. Nc4 {[%clk 0:08:22.9]} 19...
O-O {[%clk 0:10:43.1]} 20. Qe2 {[%clk 0:07:40.7]} 20... Qh5 {[%clk 0:10:20.3]}
21. Bf4 {[%clk 0:07:02.4]} 21... b5 {[%clk 0:10:20.2]} 22. Nd6 {[%clk
0:07:01.1]} 22... f6 {[%clk 0:09:57.7]} 23. Ne4 {[%clk 0:06:49.8]} 23... fxe5
{[%clk 0:09:51.8]} 24. Ng3 {[%clk 0:06:36.9]} 24... Bxf3 {[%clk 0:09:06]} 25.
Nxh5 {[%clk 0:06:25.6]} 25... Bxe2 {[%clk 0:09:07.6]} 26. Kxe2 {[%clk
0:06:17.7]} 26... exf4 {[%clk 0:09:09.1]} 27. Rxf4 {[%clk 0:06:15.8]} 27... Rxf4
{[%clk 0:09:08.2]} 28. Nxf4 {[%clk 0:06:16.4]} 28... e5 {[%clk 0:09:09.8]} 29.
Nd5 {[%clk 0:06:09.7]} 29... Bg5 {[%clk 0:09:10.3]} 30. Rg1 {[%clk 0:06:04.5]}
30... h6 {[%clk 0:09:12.1]} 31. Nc7 {[%clk 0:06:01.9]} 31... Rb8 {[%clk
0:09:12.4]} 32. Ne6 {[%clk 0:06:01.4]} 32... Bf6 {[%clk 0:09:06.8]} 33. Nxc5
{[%clk 0:05:47.6]} 33... Rc8 {[%clk 0:09:08.5]} 34. b4 {[%clk 0:05:42.1]} 34...
a5 {[%clk 0:09:09.5]} 35. a3 {[%clk 0:05:43.2]} 35... axb4 {[%clk 0:09:11.7]}
36. axb4 {[%clk 0:05:44.9]} 36... Ra8 {[%clk 0:09:13.1]} 37. Ne4 {[%clk
0:05:38.5]} 37... Ra2+ {[%clk 0:09:11.7]} 38. Kf3 {[%clk 0:05:39]} 38... Kf7
{[%clk 0:09:14.1]} 39. Nd6+ {[%clk 0:05:35.9]} 39... Ke7 {[%clk 0:09:08.7]} 40.
Nxb5 {[%clk 0:05:37.4]} 40... Rb2 {[%clk 0:09:11.1]} 41. Nc7 {[%clk 0:05:29.7]}
41... Kd6 {[%clk 0:09:11.8]} 42. Ne8+ {[%clk 0:05:29]} 42... Ke6 {[%clk
0:09:13.6]} 43. Nc7+ {[%clk 0:05:27.9]} 43... Kf5 {[%clk 0:09:00.2]} 44. Nd5
{[%clk 0:05:25.1]} 44... Rb3 {[%clk 0:08:56.4]} 45. Rd1 {[%clk 0:05:19.5]} 45...
g5 {[%clk 0:08:53.5]} 46. Nxf6 {[%clk 0:05:01.2]} 46... Kxf6 {[%clk 0:08:54.7]}
47. Ke4 {[%clk 0:05:03]} 47... Rxb4 {[%clk 0:08:52.6]} 48. Rf1+ {[%clk
0:05:04.2]} 48... Ke6 {[%clk 0:08:54.2]} 49. Rh1 {[%clk 0:05:05.1]} 49... Rb1
{[%clk 0:08:48.3]} 50. Rxb1 {[%clk 0:05:04.8]} 50... h5 {[%clk 0:08:40]} 51.
Rb6+ {[%clk 0:05:00.7]} 51... Kf7 {[%clk 0:08:41.6]} 52. Kxe5 {[%clk 0:05:02.1]}
52... g4 {[%clk 0:08:42.6]} 53. Rh6 {[%clk 0:04:59.7]} 53... Kg7 {[%clk
0:08:41.9]} 54. Rxh5 {[%clk 0:05:01.1]} 54... Kg6 {[%clk 0:08:44.8]} 55. Rf5
{[%clk 0:04:59.6]} 55... g3 {[%clk 0:08:45.8]} 56. Rf1 {[%clk 0:05:00.8]} 56...
Kg5 {[%clk 0:08:47.6]} 57. Rg1 {[%clk 0:05:02.4]} 57... Kg4 {[%clk 0:08:49.6]}
58. Kxd4 {[%clk 0:05:03.9]} 58... Kf3 {[%clk 0:08:51.9]} 59. Rxg3+ {[%clk
0:05:00.4]} 59... Kxg3 {[%clk 0:08:53.8]} 60. Ke5 {[%clk 0:05:02.2]} 60... Kg4
{[%clk 0:08:55.4]} 61. d4 {[%clk 0:05:03.6]} 1-0

[Event "Rapid del Mercoledì"]
[Site "Chess.com"]
[Date "2020.06.03"]
[Round "1"]
[White "markk000"]
[Black "fausto2p"]
[Result "1/2-1/2"]
[WhiteElo "1449"]
[BlackElo "1200"]
[TimeControl "720+3"]
[EndTime "12:18:33 PDT"]
[Termination "Partita patta per ripetizione di mosse"]

1. d4 {[%clk 0:12:00.2]} 1... d5 {[%clk 0:11:59.9]} 2. c4 {[%clk 0:12:02.1]}
2... c6 {[%clk 0:12:00.3]} 3. Nc3 {[%clk 0:12:03.7]} 3... Nf6 {[%clk 0:12:00.8]}
4. Nf3 {[%clk 0:12:05.6]} 4... dxc4 {[%clk 0:12:00.9]} 5. e3 {[%clk 0:12:06.9]}
5... b5 {[%clk 0:12:00.9]} 6. a4 {[%clk 0:12:08.8]} 6... e6 {[%clk 0:11:12.8]}
7. axb5 {[%clk 0:12:03.5]} 7... cxb5 {[%clk 0:10:44.2]} 8. Nxb5 {[%clk
0:12:05.2]} 8... Bd7 {[%clk 0:10:29.7]} 9. Bxc4 {[%clk 0:12:02.5]} 9... Bb4+
{[%clk 0:10:22.6]} 10. Nc3 {[%clk 0:12:03.6]} 10... a5 {[%clk 0:10:03.2]} 11.
O-O {[%clk 0:12:04.2]} 11... O-O {[%clk 0:10:00.7]} 12. Ne5 {[%clk 0:12:02]}
12... Qc7 {[%clk 0:09:51.7]} 13. Bd3 {[%clk 0:11:44]} 13... Nc6 {[%clk
0:09:42.4]} 14. Nxd7 {[%clk 0:11:28.9]} 14... Qxd7 {[%clk 0:08:58.5]} 15. Bb5
{[%clk 0:11:25.7]} 15... Qc7 {[%clk 0:07:45.4]} 16. Qf3 {[%clk 0:11:07]} 16...
Bxc3 {[%clk 0:07:37.7]} 17. bxc3 {[%clk 0:11:02.5]} 17... Na7 {[%clk 0:06:33.5]}
18. c4 {[%clk 0:10:49.5]} 18... Nxb5 {[%clk 0:06:22]} 19. cxb5 {[%clk
0:10:52.4]} 19... Qb6 {[%clk 0:05:37.6]} 20. Rb1 {[%clk 0:10:42.4]} 20... Nd5
{[%clk 0:05:35.4]} 21. Bd2 {[%clk 0:10:33.2]} 21... Rfc8 {[%clk 0:05:11.5]} 22.
Qe2 {[%clk 0:10:23.2]} 22... Rc2 {[%clk 0:04:51.7]} 23. Qd3 {[%clk 0:10:21.5]}
23... Rac8 {[%clk 0:04:32.9]} 24. Rfc1 {[%clk 0:10:15.9]} 24... Rxc1+ {[%clk
0:04:08]} 25. Rxc1 {[%clk 0:10:18.8]} 25... Rxc1+ {[%clk 0:04:02.1]} 26. Bxc1
{[%clk 0:10:21.7]} 26... Nb4 {[%clk 0:03:57.6]} 27. Qc4 {[%clk 0:10:19.6]} 27...
h6 {[%clk 0:03:25]} 28. Ba3 {[%clk 0:10:07.8]} 28... Nd5 {[%clk 0:03:06.2]} 29.
Bc5 {[%clk 0:10:06.4]} 29... Qb7 {[%clk 0:02:54.9]} 30. h3 {[%clk 0:09:52.9]}
30... f6 {[%clk 0:02:29.2]} 31. e4 {[%clk 0:09:44.3]} 31... Nf4 {[%clk
0:02:10.7]} 32. Bd6 {[%clk 0:09:14.9]} 32... Qxe4 {[%clk 0:01:59.2]} 33. Bxf4
{[%clk 0:09:13.6]} 33... Qxf4 {[%clk 0:01:40.2]} 34. Qxe6+ {[%clk 0:09:14.5]}
34... Kh7 {[%clk 0:01:39.3]} 35. Qa6 {[%clk 0:09:02.5]} 35... Qc1+ {[%clk
0:01:35.1]} 36. Kh2 {[%clk 0:09:03.2]} 36... Qf4+ {[%clk 0:01:31.4]} 37. Kg1
{[%clk 0:08:53.3]} 37... Qc1+ {[%clk 0:01:28.9]} 38. Kh2 {[%clk 0:08:47.2]}
38... Qf4+ {[%clk 0:01:29.8]} 39. Kh1 {[%clk 0:08:40.2]} 39... Qc1+ {[%clk
0:01:28.8]} 40. Kh2 {[%clk 0:08:41.9]} 1/2-1/2

[Event "Rapid del Mercoledì"]
[Site "Chess.com"]
[Date "2020.06.03"]
[Round "2"]
[White "mr6701"]
[Black "fausto2p"]
[Result "1-0"]
[WhiteElo "1788"]
[BlackElo "1199"]
[TimeControl "720+3"]
[EndTime "12:27:49 PDT"]
[Termination "mr6701 ha vinto per abbandono"]

1. e4 {[%clk 0:11:34.6]} 1... e6 {[%clk 0:11:59.7]} 2. d4 {[%clk 0:11:32.6]}
2... d5 {[%clk 0:12:01.4]} 3. Nc3 {[%clk 0:11:32.6]} 3... c5 {[%clk 0:11:39.5]}
4. exd5 {[%clk 0:11:33.7]} 4... exd5 {[%clk 0:11:37.6]} 5. Nf3 {[%clk
0:11:35.1]} 5... Nf6 {[%clk 0:11:26.4]} 6. Bg5 {[%clk 0:11:33.5]} 6... cxd4
{[%clk 0:11:12.1]} 7. Nxd4 {[%clk 0:11:32.6]} 7... Bc5 {[%clk 0:10:45.9]} 8.
Bb5+ {[%clk 0:11:31.9]} 8... Bd7 {[%clk 0:10:36.4]} 9. O-O {[%clk 0:11:30.4]}
9... O-O {[%clk 0:10:35.7]} 10. Nb3 {[%clk 0:11:27.6]} 10... Bxb5 {[%clk
0:10:12.3]} 11. Nxb5 {[%clk 0:11:09.8]} 11... Be7 {[%clk 0:09:48.9]} 12. Qf3
{[%clk 0:11:06.8]} 12... Nc6 {[%clk 0:09:24.6]} 13. Rfe1 {[%clk 0:11:08.2]}
13... Re8 {[%clk 0:09:05.8]} 14. Bxf6 {[%clk 0:10:58.5]} 14... Bxf6 {[%clk
0:08:51.3]} 15. Rxe8+ {[%clk 0:10:58.9]} 15... Qxe8 {[%clk 0:08:47.5]} 16. Nc7
{[%clk 0:11:01.8]} 16... Qd8 {[%clk 0:08:29.6]} 17. Nxa8 {[%clk 0:11:03.2]}
17... Bxb2 {[%clk 0:08:08.2]} 18. Rd1 {[%clk 0:10:54.2]} 18... d4 {[%clk
0:07:51.3]} 19. c3 {[%clk 0:10:48]} 19... Bxc3 {[%clk 0:07:49.4]} 20. Qxc3
{[%clk 0:10:48.3]} 20... Qxa8 {[%clk 0:07:38.4]} 21. Nxd4 {[%clk 0:10:47.7]}
21... Ne5 {[%clk 0:07:22.9]} 22. Nf5 {[%clk 0:10:37.8]} 22... f6 {[%clk
0:07:08.7]} 23. Qc8+ {[%clk 0:10:28.9]} 1-0

[Event "Rapid del Mercoledì"]
[Site "Chess.com"]
[Date "2020.06.03"]
[Round "2"]
[White "SanSecondoPR"]
[Black "malberici"]
[Result "1-0"]
[WhiteElo "1351"]
[BlackElo "1313"]
[TimeControl "720+3"]
[EndTime "12:29:18 PDT"]
[Termination "SanSecondoPR ha vinto per abbandono"]

1. e4 {[%clk 0:12:02.9]} 1... Nf6 {[%clk 0:12:00.1]} 2. Nc3 {[%clk 0:12:01.6]}
2... e5 {[%clk 0:12:00.4]} 3. Nf3 {[%clk 0:11:59.1]} 3... Nc6 {[%clk 0:12:00.6]}
4. b3 {[%clk 0:11:54.2]} 4... Bc5 {[%clk 0:11:59.2]} 5. Ne2 {[%clk 0:11:43.7]}
5... Ng4 {[%clk 0:11:35]} 6. d4 {[%clk 0:11:40.1]} 6... exd4 {[%clk 0:11:35.1]}
7. Nfxd4 {[%clk 0:11:21.9]} 7... O-O {[%clk 0:11:28.8]} 8. Bb2 {[%clk
0:11:02.1]} 8... Qf6 {[%clk 0:11:12.6]} 9. f3 {[%clk 0:10:42.2]} 9... Ne3 {[%clk
0:10:55.3]} 10. Qd2 {[%clk 0:10:37.9]} 10... Nxf1 {[%clk 0:10:51.1]} 11. Rxf1
{[%clk 0:10:35.6]} 11... Bb4 {[%clk 0:10:42.4]} 12. Bc3 {[%clk 0:10:24]} 12...
Bxc3 {[%clk 0:10:27.1]} 13. Qxc3 {[%clk 0:10:15.3]} 13... d5 {[%clk 0:10:23.3]}
14. O-O-O {[%clk 0:10:06]} 14... dxe4 {[%clk 0:10:15.5]} 15. fxe4 {[%clk
0:10:02.5]} 15... Qg5+ {[%clk 0:10:07.7]} 16. Kb2 {[%clk 0:09:52.9]} 16... Ne5
{[%clk 0:09:54.1]} 17. Nf3 {[%clk 0:08:52.8]} 17... c5 {[%clk 0:09:57]} 18. Qxe5
{[%clk 0:08:46.5]} 18... Qxe5+ {[%clk 0:09:53.7]} 19. Nxe5 {[%clk 0:08:47]}
19... Be6 {[%clk 0:09:49.8]} 20. Nf4 {[%clk 0:08:41.4]} 20... c4 {[%clk
0:09:41.1]} 21. Nxe6 {[%clk 0:08:36.6]} 21... fxe6 {[%clk 0:09:42.1]} 22. Nxc4
{[%clk 0:08:35.1]} 22... Rfc8 {[%clk 0:09:38.7]} 23. Rd7 {[%clk 0:08:31.4]}
23... b5 {[%clk 0:09:34.2]} 24. Nd6 {[%clk 0:08:28.2]} 24... Rf8 {[%clk
0:09:26.2]} 25. Rf3 {[%clk 0:08:21]} 25... h6 {[%clk 0:09:23.2]} 26. e5 {[%clk
0:08:17.8]} 26... a5 {[%clk 0:09:19.5]} 27. Nxb5 {[%clk 0:08:16.4]} 27... a4
{[%clk 0:09:18.7]} 28. b4 {[%clk 0:08:16.2]} 28... Rab8 {[%clk 0:09:10.5]} 29.
c4 {[%clk 0:08:15.1]} 29... Rf5 {[%clk 0:09:02.4]} 30. Rxf5 {[%clk 0:08:08.6]}
30... exf5 {[%clk 0:09:03.4]} 31. e6 {[%clk 0:08:09.2]} 31... Re8 {[%clk
0:09:02.1]} 32. Nc7 {[%clk 0:08:03.9]} 1-0

[Event "Rapid del Mercoledì"]
[Site "Chess.com"]
[Date "2020.06.03"]
[Round "2"]
[White "sirmale49"]
[Black "pedrak"]
[Result "0-1"]
[WhiteElo "1367"]
[BlackElo "1705"]
[TimeControl "720+3"]
[EndTime "12:34:15 PDT"]
[Termination "pedrak ha vinto per abbandono"]

1. e4 {[%clk 0:11:59.1]} 1... d6 {[%clk 0:11:58]} 2. f4 {[%clk 0:11:52.9]} 2...
Nf6 {[%clk 0:11:48.3]} 3. Nc3 {[%clk 0:11:52.6]} 3... c6 {[%clk 0:11:47]} 4. d4
{[%clk 0:11:53.8]} 4... Qa5 {[%clk 0:11:45.8]} 5. Bd2 {[%clk 0:11:52.9]} 5...
Qb6 {[%clk 0:11:42.2]} 6. Nf3 {[%clk 0:11:51.7]} 6... Bg4 {[%clk 0:11:31.8]} 7.
h3 {[%clk 0:11:35.9]} 7... Bxf3 {[%clk 0:11:29.7]} 8. Qxf3 {[%clk 0:11:33.6]}
8... Qxd4 {[%clk 0:11:21.4]} 9. Be3 {[%clk 0:11:27.9]} 9... Qb4 {[%clk
0:11:21.6]} 10. Rb1 {[%clk 0:11:15.9]} 10... e6 {[%clk 0:11:09.9]} 11. Bd3
{[%clk 0:11:16.2]} 11... Be7 {[%clk 0:11:07.2]} 12. O-O {[%clk 0:11:15.3]} 12...
O-O {[%clk 0:11:08]} 13. a3 {[%clk 0:11:08]} 13... Qa5 {[%clk 0:11:08.4]} 14.
Bd2 {[%clk 0:11:00.4]} 14... Qc7 {[%clk 0:11:09.3]} 15. f5 {[%clk 0:10:40.5]}
15... e5 {[%clk 0:11:01.2]} 16. g4 {[%clk 0:10:31.8]} 16... Nfd7 {[%clk
0:11:01]} 17. Be3 {[%clk 0:10:21.8]} 17... Nc5 {[%clk 0:10:11.3]} 18. Bc4 {[%clk
0:10:16.9]} 18... Kh8 {[%clk 0:10:04]} 19. g5 {[%clk 0:10:13.2]} 19... f6 {[%clk
0:09:24.9]} 20. b4 {[%clk 0:09:57.3]} 20... Nca6 {[%clk 0:09:12.1]} 21. g6
{[%clk 0:09:31.6]} 21... Bd8 {[%clk 0:08:25.7]} 22. gxh7 {[%clk 0:09:28.8]}
22... b5 {[%clk 0:08:04.3]} 23. Be6 {[%clk 0:09:26.4]} 23... Qe7 {[%clk
0:08:05.6]} 24. h4 {[%clk 0:09:11.1]} 24... Bb6 {[%clk 0:08:06.2]} 25. Bxb6
{[%clk 0:09:08.7]} 25... axb6 {[%clk 0:08:07.4]} 26. Kh2 {[%clk 0:09:00]} 26...
Nc7 {[%clk 0:08:08.7]} 27. Qg4 {[%clk 0:08:52]} 27... Rxa3 {[%clk 0:07:57.8]}
28. Rf3 {[%clk 0:08:08.3]} 28... Nxe6 {[%clk 0:07:38.4]} 29. fxe6 {[%clk
0:08:08.3]} 29... Na6 {[%clk 0:07:39.5]} 30. h5 {[%clk 0:08:06.7]} 30... Qe8
{[%clk 0:07:10.9]} 31. Rg3 {[%clk 0:08:02.3]} 31... Qe7 {[%clk 0:07:03.2]} 32.
Nd5 {[%clk 0:07:55.2]} 32... Rxg3 {[%clk 0:06:59.1]} 33. Nxe7 {[%clk 0:07:34.1]}
33... Rxg4 {[%clk 0:07:00.4]} 34. Ng6+ {[%clk 0:07:35.3]} 34... Rxg6 {[%clk
0:07:02.2]} 35. hxg6 {[%clk 0:07:35.2]} 35... Nxb4 {[%clk 0:07:02]} 36. Ra1
{[%clk 0:07:27.8]} 36... Nxc2 {[%clk 0:07:02]} 37. Ra7 {[%clk 0:07:28.4]} 37...
Nd4 {[%clk 0:06:52.7]} 38. Rf7 {[%clk 0:07:19.4]} 38... Re8 {[%clk 0:06:53.4]}
39. e7 {[%clk 0:07:19.8]} 39... Ne6 {[%clk 0:06:49.1]} 40. Kg2 {[%clk
0:07:13.2]} 40... b4 {[%clk 0:06:49.8]} 41. Kf2 {[%clk 0:07:14.7]} 41... b3
{[%clk 0:06:49.8]} 42. Ke2 {[%clk 0:07:16.3]} 42... c5 {[%clk 0:06:51.7]} 43.
Kd2 {[%clk 0:07:17.9]} 43... c4 {[%clk 0:06:52.9]} 44. Kc3 {[%clk 0:07:19.4]}
44... b5 {[%clk 0:06:54.3]} 45. Kb2 {[%clk 0:07:20.7]} 45... b4 {[%clk
0:06:55.5]} 0-1

[Event "Rapid del Mercoledì"]
[Site "Chess.com"]
[Date "2020.06.03"]
[Round "2"]
[White "Mrtre7"]
[Black "markk000"]
[Result "1-0"]
[WhiteElo "1477"]
[BlackElo "1439"]
[TimeControl "720+3"]
[EndTime "12:39:20 PDT"]
[Termination "Mrtre7 ha vinto per abbandono"]

1. d4 {[%clk 0:12:02.9]} 1... Nf6 {[%clk 0:11:58.7]} 2. c4 {[%clk 0:12:04.5]}
2... g6 {[%clk 0:12:00.6]} 3. Nc3 {[%clk 0:12:06.2]} 3... Bg7 {[%clk 0:12:02.9]}
4. e4 {[%clk 0:12:08.1]} 4... O-O {[%clk 0:12:05.4]} 5. Nf3 {[%clk 0:12:09.9]}
5... d6 {[%clk 0:12:07.9]} 6. Be2 {[%clk 0:12:11.8]} 6... Nbd7 {[%clk
0:11:49.5]} 7. O-O {[%clk 0:12:11.2]} 7... e5 {[%clk 0:11:49.3]} 8. Be3 {[%clk
0:10:25.1]} 8... Re8 {[%clk 0:11:34.7]} 9. d5 {[%clk 0:10:02.8]} 9... Ng4 {[%clk
0:11:19.1]} 10. Bg5 {[%clk 0:10:02.6]} 10... f6 {[%clk 0:11:15.7]} 11. Bc1
{[%clk 0:10:03.7]} 11... Nc5 {[%clk 0:11:13.4]} 12. b4 {[%clk 0:09:49.8]} 12...
Na6 {[%clk 0:10:41.3]} 13. Ba3 {[%clk 0:09:50.2]} 13... f5 {[%clk 0:10:41.3]}
14. c5 {[%clk 0:09:42.2]} 14... fxe4 {[%clk 0:10:29]} 15. Nxe4 {[%clk 0:09:44]}
15... Bf5 {[%clk 0:10:30.3]} 16. Bd3 {[%clk 0:08:59.5]} 16... Bxe4 {[%clk
0:10:09.2]} 17. Bxe4 {[%clk 0:09:01.1]} 17... Nf6 {[%clk 0:10:10.9]} 18. Re1
{[%clk 0:08:42.6]} 18... Rc8 {[%clk 0:09:45.5]} 19. Ng5 {[%clk 0:07:17]} 19...
Nxe4 {[%clk 0:09:33.6]} 20. Nxe4 {[%clk 0:07:11.4]} 20... Nb8 {[%clk 0:08:49.1]}
21. Rc1 {[%clk 0:07:12.2]} 21... dxc5 {[%clk 0:07:56.9]} 22. bxc5 {[%clk
0:07:02.2]} 22... Nd7 {[%clk 0:07:54.2]} 23. Qb3 {[%clk 0:06:46.3]} 23... Rb8
{[%clk 0:07:26.5]} 24. d6+ {[%clk 0:05:23]} 24... Kh8 {[%clk 0:07:25.3]} 25.
dxc7 {[%clk 0:05:21.7]} 25... Qxc7 {[%clk 0:07:24.4]} 26. Nd6 {[%clk 0:05:21.9]}
26... Rf8 {[%clk 0:07:21]} 27. Nf7+ {[%clk 0:04:16]} 27... Rxf7 {[%clk
0:07:11.8]} 28. Qxf7 {[%clk 0:04:16.7]} 28... Rf8 {[%clk 0:07:10.6]} 29. Qd5
{[%clk 0:04:03.6]} 29... Nf6 {[%clk 0:06:19.1]} 30. Qd6 {[%clk 0:04:02.2]} 30...
Qa5 {[%clk 0:06:12.8]} 31. Bb2 {[%clk 0:03:51.6]} 31... Ne8 {[%clk 0:06:11.2]}
32. Qe6 {[%clk 0:03:21.1]} 32... Qd2 {[%clk 0:06:02.2]} 33. Bxe5 {[%clk
0:02:36.1]} 33... Qxf2+ {[%clk 0:05:47.7]} 34. Kh1 {[%clk 0:02:36.9]} 34... Bxe5
{[%clk 0:05:38.7]} 35. Qxe5+ {[%clk 0:02:36.5]} 35... Kg8 {[%clk 0:05:40.2]} 36.
Qe2 {[%clk 0:02:12.1]} 36... Qh4 {[%clk 0:05:30.5]} 37. Qc4+ {[%clk 0:02:09.9]}
37... Kh8 {[%clk 0:05:25.5]} 38. Qxh4 {[%clk 0:02:10.9]} 1-0

[Event "Rapid del Mercoledì"]
[Site "Chess.com"]
[Date "2020.06.03"]
[Round "3"]
[White "markk000"]
[Black "sirmale49"]
[Result "0-1"]
[WhiteElo "1427"]
[BlackElo "1377"]
[TimeControl "720+3"]
[EndTime "12:44:25 PDT"]
[Termination "sirmale49 ha vinto per abbandono"]

1. d4 {[%clk 0:11:51.8]} 1... d5 {[%clk 0:11:34.2]} 2. c4 {[%clk 0:11:43.1]}
2... e5 {[%clk 0:11:30.1]} 3. dxe5 {[%clk 0:11:41.9]} 3... d4 {[%clk 0:11:30.9]}
4. Nf3 {[%clk 0:11:42.7]} 4... Nc6 {[%clk 0:11:31]} 5. e3 {[%clk 0:11:43.1]}
5... Bg4 {[%clk 0:11:25.1]} 6. Be2 {[%clk 0:11:29.7]} 6... Bb4+ {[%clk
0:11:17.1]} 7. Nbd2 {[%clk 0:11:28.7]} 7... dxe3 {[%clk 0:11:10.5]} 8. fxe3
{[%clk 0:11:31.6]} 8... Bxf3 {[%clk 0:11:09.2]} 9. Bxf3 {[%clk 0:11:29.7]} 9...
Nxe5 {[%clk 0:10:57.7]} 10. Qa4+ {[%clk 0:11:22.6]} 10... c6 {[%clk 0:10:31.9]}
11. Be2 {[%clk 0:10:52.2]} 11... Qb6 {[%clk 0:10:09.2]} 12. Qb3 {[%clk
0:10:45.5]} 12... c5 {[%clk 0:10:02.9]} 13. a3 {[%clk 0:10:46.9]} 13... Bxd2+
{[%clk 0:09:55.4]} 0-1